bitfinex/quotes_ETHUSD_20260306
["timestamp","ask_amount","ask_price","bid_price","bid_amount"]
[1772795540372,0.001,2062.7,2062.4,0.48374492]
[1772795540572,0.001,2062.5,2062.4,0.48374492]
[1772795541140,0.001,2063.0,2062.4,0.48374492]
[1772795541545,0.001,2063.5,2062.5,0.48374492]
[1772795541856,6.3838719,2064.1,2062.5,0.48374492]
[1772795541857,0.001,2064.1,2063.0,0.48374492]
[1772795542065,0.001,2064.1,2063.2,0.48374492]
[1772795542374,0.001,2064.1,2063.4,0.48374492]
[1772795543152,0.001,2064.1,2063.3,1.21165123]
[1772795543153,0.001,2064.1,2063.6,0.48374492]
[1772795543887,5.1566294,2064.8,2063.6,0.48374492]
[1772795544545,5.1566294,2064.8,2063.8,0.48374492]
[1772795544946,4.84418521,2064.8,2063.8,0.48374492]
[1772795545380,0.31244419,2064.7,2063.8,0.48374492]
[1772795546790,1.2117976,2064.8,2064.0,0.48374492]
[1772795546952,5.15459022,2065.3,2064.1,0.48374492]
[1772795547290,0.31244419,2065.3,2064.3,0.48374492]
[1772795547665,1.21041928,2065.4,2064.5,0.5]
[1772795547868,1.21041928,2065.4,2064.7,0.5]
[1772795548054,1.69447988,2065.4,2064.3,0.48374492]
[1772795548251,0.4840606,2065.3,2064.0,0.48374492]
[1772795548667,1.2105365,2065.2,2064.2,0.48374492]
[1772795550192,1.6945971,2065.2,2064.2,0.48374492]
[1772795550560,1.2105365,2065.2,2064.2,0.48374492]
[1772795550892,1.21039255,2065.5,2064.4,0.48374492]
[1772795551116,2.11341875,2066.0,2064.4,0.48374492]
[1772795551256,0.90329784,2066.0,2064.8,0.48374492]
[1772795551458,0.90329784,2066.0,2065.0,0.48374492]
[1772795551660,1.20991033,2066.3,2065.1,0.45120817]
[1772795551891,2.55528602,2066.5,2065.1,0.45120817]
[1772795551892,4.83899052,2066.6,2065.1,0.45120817]
[1772795552058,0.48563018,2066.5,2065.1,0.45120817]
[1772795552860,1.20983352,2066.4,2065.3,0.48036375]
[1772795553964,1.70193941,2066.4,2065.3,0.48036375]
[1772795554783,1.70205652,2066.2,2065.3,0.48036375]
[1772795555287,1.70205652,2066.2,2065.3,1.69083357]
[1772795555494,4.83956831,2066.4,2065.4,0.48036375]
[1772795556185,0.49210589,2066.3,2065.4,0.48036375]
[1772795556361,1.20983352,2066.4,2065.4,0.48036375]
[1772795556791,4.83915579,2066.5,2065.5,1.69072443]
[1772795557089,4.83915579,2066.5,2065.2,1.69085764]
[1772795557090,0.49210589,2066.4,2065.2,1.69085764]
[1772795557261,0.49210589,2066.4,2065.3,0.48036375]
[1772795558198,0.49210589,2066.4,2065.1,1.21055189]
[1772795558363,0.49210589,2066.1,2064.8,5.32337952]
[1772795558560,0.49210589,2066.0,2064.8,5.32337952]
[1772795558773,1.70223222,2065.9,2064.8,5.32337952]
[1772795559377,0.49210589,2065.7,2064.8,1.69113476]
[1772795559984,0.49210589,2065.7,2064.8,0.48036375]
[1772795560370,0.49210589,2065.7,2064.5,0.48036375]
[1772795560576,0.49210589,2065.5,2064.5,0.48036375]
[1772795560802,0.49210589,2065.3,2064.3,1.21101986]
[1772795561175,0.49210589,2065.3,2064.2,1.69147724]
[1772795561487,0.49210589,2065.3,2064.0,1.69155753]
[1772795561488,0.49210589,2065.2,2064.0,1.69155753]
[1772795562403,0.49210589,2065.2,2064.0,0.48036375]
[1772795562600,0.49210589,2065.2,2064.0,1.69160052]
[1772795562971,0.49210589,2065.0,2064.0,1.69160052]
[1772795563598,0.49210589,2065.0,2063.8,1.21132769]
[1772795564399,0.49210589,2064.9,2063.6,3.07172651]
[1772795564579,0.49210589,2064.9,2063.6,4.2831729]
[1772795564906,0.49210589,2064.9,2063.7,0.48036375]
[1772795565103,0.49210589,2064.7,2063.7,1.69174882]
[1772795565610,0.49210589,2064.7,2063.7,1.69177754]
[1772795565775,0.49210589,2064.7,2063.7,0.48036375]
[1772795566474,0.49210589,2064.6,2063.5,0.48036375]
[1772795566677,0.49210589,2064.6,2063.3,0.48036375]
[1772795567109,0.49210589,2064.4,2064.0,0.001]
[1772795568507,0.49210589,2064.4,2063.5,0.48036375]
[1772795570211,1.21106428,2064.3,2063.5,1.69189351]
[1772795571015,1.70315599,2064.4,2063.6,0.48036375]
[1772795571182,2.7580501,2064.4,2063.6,0.48036375]
[1772795571577,1.2110501,2064.4,2063.6,0.48036375]
[1772795572485,1.2110501,2064.4,2063.7,1.69178013]
[1772795573309,1.2110501,2064.4,2063.7,0.48036375]
[1772795573812,1.70315599,2064.4,2063.7,0.48036375]
[1772795574215,1.2110501,2064.4,2063.7,0.48036375]
[1772795574714,0.49210589,2064.3,2063.3,0.48036375]
[1772795575091,2.7590501,2064.4,2063.3,0.48036375]
[1772795576122,1.548,2064.4,2063.3,0.48036375]
[1772795576911,1.21094696,2064.5,2063.5,0.48036375]
[1772795577116,4.8434603,2064.7,2063.5,0.48036375]
[1772795577291,6.3924603,2064.7,2063.5,0.48036375]
[1772795578111,0.49210589,2064.6,2063.5,0.48036375]
[1772795579317,1.21094696,2064.5,2063.7,0.48036375]
[1772795579522,0.002,2064.2,2063.7,0.48036375]
[1772795582127,0.002,2064.2,2063.8,1.68618261]
[1772795582327,0.002,2064.2,2063.9,0.47482493]
[1772795584832,0.002,2064.4,2064.0,0.47482493]
[1772795585032,0.002,2064.4,2064.1,0.47482493]
[1772795586904,0.002,2064.4,2064.2,1.21112295]
[1772795587101,0.002,2064.4,2064.2,1.68594788]
[1772795588032,0.002,2064.4,2064.2,0.47482493]
[1772795588203,0.002,2064.4,2064.0,0.47482493]
[1772795589101,0.002,2064.4,2064.1,1.68600655]
[1772795589297,0.002,2064.4,2064.2,0.47482493]
[1772795589814,0.002,2064.4,2064.0,1.21121281]
[1772795590309,0.002,2064.4,2063.7,4.84552252]
[1772795590310,0.45356301,2064.4,2063.7,5.32035056]
[1772795590704,0.45356301,2064.4,2063.7,1.68624131]
[1772795591523,1.21106428,2064.3,2063.7,1.68624131]
[1772795591711,0.45356301,2064.4,2063.7,1.68624131]
[1772795591912,0.002,2064.4,2063.8,0.47482493]
[1772795592442,0.002,2064.7,2063.8,0.47482493]
[1772795593440,0.002,2064.7,2064.0,0.47482493]
[1772795594218,0.002,2064.2,2064.0,0.47482493]
[1772795595015,0.002,2064.7,2064.0,0.47482493]
[1772795595403,0.002,2064.7,2064.2,0.47482493]
[1772795596002,0.45356301,2064.7,2064.1,1.21118162]
[1772795596506,0.45356301,2064.7,2064.1,1.68600655]
[1772795597106,0.002,2064.7,2064.2,0.47482493]
[1772795597522,0.002,2064.7,2064.4,0.47482493]
[1772795597920,1.21052692,2065.3,2064.4,0.47482493]
[1772795598219,0.45156301,2065.3,2064.4,0.47482493]
[1772795599760,1.66204848,2065.3,2064.6,0.47482493]
[1772795600755,0.45156301,2065.5,2064.6,0.47482493]
[1772795601552,0.45156301,2065.6,2064.6,0.47482493]
[1772795601753,1.66191234,2065.6,2064.8,0.47482493]
[1772795602928,0.45156301,2065.6,2064.8,0.47482493]
[1772795603140,1.66186869,2065.6,2064.8,0.47482493]
[1772795603440,0.45156301,2065.5,2064.8,0.47482493]
[1772795603839,1.21033232,2065.6,2065.0,0.47482493]
[1772795604657,1.66189533,2065.6,2065.0,0.47482493]
[1772795605341,0.45156301,2065.5,2064.8,1.6855499]
[1772795606055,1.21041928,2065.4,2064.9,0.47482493]
[1772795606256,1.66184244,2065.7,2064.9,0.47482493]
[1772795606750,0.45156301,2065.9,2064.9,0.47482493]
[1772795608054,0.002,2065.3,2065.0,1.21065375]
[1772795608630,0.45356301,2065.3,2064.7,0.47482493]
[1772795608838,0.45356301,2065.3,2064.6,1.21085046]
[1772795609057,0.45356301,2065.3,2064.6,1.68567539]
[1772795610160,1.66408492,2065.3,2064.7,0.47482493]
[1772795610363,1.21252191,2065.3,2064.7,0.47482493]
[1772795610835,0.002,2065.3,2064.7,0.47482493]
[1772795611527,1.21247845,2065.3,2064.7,0.47482493]
[1772795611859,1.66579154,2065.3,2064.7,0.47482493]
[1772795612060,2.23807524,2064.8,2064.3,0.001]
[1772795612269,0.4663228,2064.6,2064.3,0.001]
[1772795613261,0.4663228,2065.0,2064.3,0.49768553]
[1772795613567,0.4663228,2065.2,2064.3,0.49768553]
[1772795614270,1.21250779,2065.3,2064.5,0.49668553]
[1772795616171,1.21250779,2065.3,2064.5,1.70759168]
[1772795616377,0.4663228,2065.2,2064.5,1.70759168]
[1772795618471,1.21059512,2065.1,2064.5,1.70759168]
[1772795620843,1.67689986,2065.2,2064.5,1.70759168]
[1772795621044,1.67689986,2065.2,2064.6,0.49668553]
[1772795621672,1.21057706,2065.2,2064.6,0.49668553]
[1772795621880,1.21248351,2065.3,2064.6,0.49668553]
[1772795622849,1.21248351,2065.3,2064.7,1.21082966]
[1772795623049,1.21248351,2065.3,2064.7,0.49668553]
[1772795623270,1.67880631,2065.3,2064.7,0.49668553]
[1772795623455,0.002,2065.0,2064.6,1.21084859]
[1772795623978,0.002,2065.0,2064.5,1.70858808]
[1772795628580,0.4683228,2065.0,2064.5,1.70858808]
[1772795629187,1.67900564,2065.0,2064.5,1.70858808]
[1772795629871,1.21268284,2065.0,2064.5,1.70858808]
[1772795630391,0.002,2065.0,2064.5,1.70858808]
[1772795631100,1.21265711,2065.0,2064.5,1.70858808]
[1772795631385,0.002,2065.0,2064.5,1.70858808]
[1772795632786,0.4683228,2065.0,2064.5,1.70858808]
[1772795633282,1.67901121,2065.0,2064.5,1.70858808]
[1772795633786,1.67901121,2065.0,2064.5,1.21190255]
[1772795633966,0.4663228,2064.9,2064.5,1.21190255]
[1772795635184,0.002,2065.0,2064.6,0.49668553]
[1772795635360,0.002,2065.0,2064.6,1.70751568]
[1772795636782,0.002,2065.0,2064.7,0.49668553]
[1772795637396,0.002,2065.0,2064.7,1.70745747]
[1772795642477,3.36289987,2064.5,2064.0,1.21222842]
[1772795642680,2.89568051,2064.4,2064.0,1.21222842]
[1772795642898,2.89568051,2064.3,2064.0,1.21222842]
[1772795643199,0.46721936,2064.5,2064.0,1.21222842]
[1772795643496,2.89560277,2064.4,2064.0,1.21222842]
[1772795643701,2.89560277,2064.3,2064.0,1.21222842]
[1772795643902,1.21100561,2064.4,2064.0,0.001]
[1772795644105,3.36248905,2064.3,2064.0,0.001]
[1772795644404,2.89526969,2064.2,2064.0,0.001]
[1772795644706,0.46721936,2064.3,2064.0,0.001]
[1772795644902,2.89346436,2064.2,2064.0,0.001]
[1772795645106,0.46721936,2064.3,2064.0,0.001]
[1772795645403,0.46721936,2064.1,2063.6,1.21244731]
[1772795645607,2.89332483,2064.0,2063.6,1.21244731]
[1772795646279,1.67844042,2064.1,2063.6,1.21244731]
[1772795646478,4.84402247,2064.5,2063.6,1.21244731]
[1772795646479,3.99421311,2064.5,2063.7,0.47947451]
[1772795646680,1.21090358,2064.6,2063.7,0.47947451]
[1772795646910,1.67807274,2064.7,2063.7,0.47947451]
[1772795647595,0.46721936,2064.6,2063.7,0.47947451]
[1772795648609,1.67814738,2064.6,2063.9,0.47947451]
[1772795649086,1.6781331,2064.6,2063.9,0.47947451]
[1772795650081,0.46721936,2064.5,2063.9,0.48047451]
[1772795650397,0.46921936,2064.5,2063.9,0.48047451]
[1772795650710,0.46721936,2064.4,2064.0,1.21124031]
[1772795652809,0.002,2064.5,2064.0,1.21124031]
[1772795653019,0.002,2064.5,2064.1,0.47947451]
[1772795653516,1.6801901,2064.5,2063.9,1.69173936]
[1772795653681,1.6801901,2064.5,2064.0,0.47947451]
[1772795654216,0.46921936,2064.5,2064.0,0.47947451]
[1772795654413,0.002,2064.5,2064.0,0.47947451]
[1772795655001,0.002,2064.5,2064.1,1.21118162]
[1772795656001,0.002,2064.5,2064.1,1.69065613]
[1772795656683,0.002,2064.5,2064.1,0.47947451]
[1772795657100,1.21294696,2064.5,2064.1,1.69063493]
[1772795657725,1.68016632,2064.5,2064.1,1.21116042]
[1772795658713,0.46921936,2064.5,2064.1,1.21116042]
[1772795658914,0.46921936,2064.5,2063.9,1.69176659]
[1772795659320,1.21100561,2064.4,2063.9,1.69176659]
[1772795659493,0.46721936,2064.3,2063.9,1.69177077]
[1772795659890,1.21100561,2064.4,2063.9,1.69177077]
[1772795661308,1.67834231,2064.2,2063.9,0.001]
[1772795663110,1.67834231,2064.2,2064.0,0.001]
[1772795663314,4.84625848,2064.3,2063.9,0.001]
[1772795663315,0.46721936,2064.1,2063.9,0.001]
[1772795665318,0.002,2064.3,2063.9,1.69172857]
[1772795665624,0.46921936,2064.3,2063.9,0.001]
[1772795667535,1.21311186,2064.3,2063.9,0.001]
[1772795667709,0.002,2064.3,2063.9,0.48047451]
[1772795668533,1.21306484,2064.3,2063.9,0.48047451]
[1772795669926,0.46721936,2064.2,2063.9,0.001]
[1772795672092,1.67839766,2064.2,2063.9,0.001]
[1772795677242,1.67839766,2064.2,2064.1,0.001]
[1772795677446,0.46721936,2064.2,2064.1,0.001]
[1772795677642,1.21310962,2064.3,2064.1,0.001]
[1772795677822,0.002,2064.2,2064.1,0.001]
[1772795681354,1.21294828,2064.5,2064.2,0.4736009]
[1772795681546,0.46213756,2064.5,2064.1,1.21214263]
[1772795683933,1.67308708,2064.5,2064.1,1.21214263]
[1772795684255,0.46013756,2064.4,2064.1,0.001]
[1772795685948,0.46013756,2064.3,2064.1,0.001]
[1772795689042,4.84579095,2064.5,2064.1,0.4746009]
[1772795689043,0.002,2064.5,2064.1,0.4746009]
[1772795691364,0.002,2064.3,2064.1,0.4746009]
[1772795691668,0.002,2064.3,2064.1,1.68573513]
[1772795692542,0.002,2064.3,2064.1,0.4746009]
[1772795692744,0.002,2064.3,2064.1,1.21218053]
[1772795693131,0.002,2064.3,2064.1,1.68578143]
[1772795694646,0.002,2064.3,2064.1,1.21217549]
[1772795697275,0.002,2064.3,2064.1,1.68577639]
[1772795697874,0.002,2064.3,2064.2,0.4736009]
[1772795698257,0.002,2064.5,2064.2,0.4736009]
[1772795698989,0.002,2064.5,2064.2,1.6846833]
[1772795700346,0.002,2064.5,2064.2,1.2110824]
[1772795700547,0.002,2064.5,2064.3,0.4736009]
[1772795700748,0.46213756,2064.5,2064.2,1.2110824]
[1772795701365,0.46213756,2064.5,2064.2,1.6846833]
[1772795702084,0.002,2064.5,2064.2,1.6846833]
[1772795702391,0.48184462,2064.5,2064.2,1.2110824]
[1772795703397,0.47984462,2064.4,2064.1,0.001]
[1772795703567,0.002,2064.3,2064.1,0.001]
[1772795703780,0.47984462,2064.2,2064.1,0.001]
[1772795704194,0.002,2064.5,2064.1,1.66901128]
[1772795704381,0.002,2064.5,2064.2,0.45685869]
[1772795705080,0.48184462,2064.5,2064.2,0.45685869]
[1772795705385,0.002,2064.5,2064.2,0.45685869]
[1772795706104,1.69279637,2064.5,2064.2,0.45685869]
[1772795706262,1.69279637,2064.5,2064.1,0.001]
[1772795706263,0.47984462,2064.4,2064.1,0.001]
[1772795707176,0.47984462,2064.4,2064.1,0.45785869]
[1772795707376,0.47984462,2064.4,2064.1,0.001]
[1772795708270,1.21100662,2064.4,2064.1,0.001]
[1772795708474,1.69085124,2064.4,2064.1,0.001]
[1772795708877,0.47984462,2064.3,2063.9,0.001]
[1772795709179,1.21124031,2064.0,2063.6,0.001]
[1772795709395,0.47984462,2063.9,2063.6,0.001]
[1772795711606,1.69115387,2063.9,2063.6,0.001]
[1772795712001,0.47984462,2063.9,2063.6,0.001]
[1772795712303,1.21129173,2064.0,2063.6,0.001]
[1772795712304,1.69107589,2064.1,2063.6,0.45785869]
[1772795713401,1.69107589,2064.1,2063.6,1.6692772]
[1772795715004,1.69107589,2064.1,2063.7,0.45685869]
[1772795715373,1.69103562,2064.1,2063.7,1.66824475]
[1772795715878,1.69103562,2064.1,2063.9,0.001]
[1772795716209,1.69303562,2064.1,2063.9,0.001]
[1772795717101,1.213191,2064.1,2063.9,0.001]
[1772795717306,0.47984462,2064.0,2063.9,0.001]
[1772795717807,1.69108493,2064.0,2063.9,0.001]
[1772795721097,0.47984462,2063.9,2063.6,0.001]
[1772795721275,0.47984462,2063.9,2063.4,0.001]
[1772795721677,0.47984462,2063.9,2063.4,1.66943416]
[1772795722210,0.47984462,2063.9,2063.4,0.45785869]
[1772795722984,0.47984462,2063.7,2063.4,0.45785869]
[1772795723594,0.47984462,2063.9,2063.5,0.45685869]
[1772795723802,1.69305339,2064.1,2063.5,0.45685869]
[1772795723989,0.47984462,2064.0,2063.5,0.45685869]
[1772795725003,0.47984462,2064.0,2063.6,1.21147509]
[1772795725212,1.69108678,2064.0,2063.6,1.66833378]
[1772795727312,0.47984462,2064.0,2063.7,0.45685869]
[1772795727812,1.69109362,2064.0,2063.7,0.45685869]
[1772795728111,1.69109362,2064.0,2063.7,0.39389862]
[1772795728314,0.002,2063.8,2063.7,0.39389862]
[1772795728610,0.002,2064.1,2063.7,0.45685869]
[1772795728805,0.002,2064.0,2063.7,0.45685869]
[1772795729946,0.002,2064.0,2063.7,1.66822951]
[1772795730807,0.002,2064.0,2063.8,0.45685869]
[1772795731710,0.45482786,2063.9,2063.5,0.001]
[1772795732009,0.45482786,2063.7,2063.5,0.001]
[1772795733816,1.66627275,2063.7,2063.5,0.001]
[1772795734326,1.66627643,2063.7,2063.5,0.001]
[1772795735403,0.45482786,2063.7,2063.5,0.001]
[1772795735800,1.66626538,2063.7,2063.5,0.001]
[1772795737090,1.68519196,2063.8,2063.5,0.001]
[1772795737292,0.473831,2063.7,2063.5,0.001]
[1772795738123,1.68528142,2063.7,2063.5,0.001]
[1772795741099,0.002,2063.6,2063.5,0.001]
[1772795741922,0.475831,2063.6,2063.5,0.001]
[1772795742719,1.2115338,2063.5,2063.3,0.47210611]
[1772795743592,1.6853648,2063.5,2063.3,0.47210611]
[1772795743922,0.473831,2063.5,2063.3,0.47210611]
[1772795745805,1.21352314,2063.6,2063.3,0.47210611]
[1772795746021,1.21352314,2063.6,2063.3,0.97115187]
[1772795746726,1.68735414,2063.6,2063.3,0.97115187]
[1772795747836,0.473831,2063.5,2063.3,0.47210611]
[1772795748060,1.21352314,2063.6,2062.6,0.49904576]
[1772795748061,0.97215186,2063.0,2062.6,0.49904576]
[1772795748330,0.97215186,2063.0,2062.7,0.49904576]
[1772795750295,0.97215186,2063.0,2062.8,1.21194492]
[1772795750629,0.97215186,2063.0,2062.4,4.84824978]
[1772795750630,0.97215186,2063.0,2062.5,0.49904576]
[1772795751928,0.002,2063.6,2062.5,0.49904576]
[1772795752130,1.68734323,2063.6,2062.5,0.49904576]
[1772795752727,1.68734323,2063.6,2062.9,0.001]
[1772795752728,0.473831,2063.5,2062.9,0.001]
[1772795753025,0.473831,2063.5,2063.0,0.49904576]
[1772795754725,1.21159251,2063.4,2063.1,0.49904576]
[1772795755126,1.68541406,2063.5,2063.1,0.49904576]
[1772795757412,1.68733923,2063.6,2063.2,0.49904576]
[1772795759348,1.21350823,2063.6,2063.2,1.21169436]
[1772795759552,1.21350823,2063.6,2063.3,0.49904576]
[1772795761139,0.002,2063.6,2063.3,0.49904576]
[1772795761311,0.002,2063.8,2063.4,0.49904576]
[1772795764244,0.002,2063.8,2063.6,0.47775508]
[1772795764542,0.33441094,2063.5,2063.4,0.47775508]
[1772795764709,0.002,2063.8,2063.4,0.47775508]
[1772795765524,0.002,2063.6,2063.4,0.47775508]
[1772795765736,0.002,2063.8,2063.4,0.47775508]
[1772795766038,0.002,2064.1,2063.4,0.47775508]
[1772795766231,0.002,2064.1,2063.6,0.47775508]
[1772795766627,0.48029126,2064.1,2063.6,0.47775508]
[1772795768346,0.47829126,2063.9,2063.6,0.47775508]
[1772795771948,0.47829126,2063.9,2063.2,0.47775508]
[1772795772450,0.47829126,2063.8,2063.4,0.47775508]
[1772795776661,1.68969064,2063.8,2063.4,1.68934334]
[1772795777255,1.68969064,2063.8,2063.6,0.001]
[1772795777925,1.69169064,2063.8,2063.6,0.001]
[1772795778625,0.48029126,2064.1,2063.6,0.47875508]
[1772795778857,3.36420537,2064.0,2063.6,0.47875508]
[1772795779159,0.47829126,2064.0,2063.6,0.47875508]
[1772795780657,1.21318716,2064.1,2063.6,0.47875508]
[1772795781728,0.48029126,2064.1,2063.7,1.68917146]
[1772795782141,2.88619758,2064.0,2063.7,1.68917146]
[1772795782486,2.88619758,2064.0,2063.8,0.47775508]
[1772795783258,0.48029126,2064.1,2063.8,0.47775508]
[1772795783626,1.69152288,2064.1,2063.8,0.47775508]
[1772795783825,2.88672727,2064.0,2063.8,0.47775508]
[1772795784253,2.52224492,2063.8,2063.7,0.03648401]
[1772795786273,0.002,2064.1,2063.8,0.03648401]
[1772795786780,3.37329205,2064.1,2063.7,1.21141638]
[1772795786954,0.48375799,2064.1,2063.7,1.24790039]
[1772795788878,1.69495447,2064.1,2063.7,1.24790039]
[1772795789048,0.48375799,2064.1,2063.7,1.24790039]
[1772795789886,0.48375799,2064.1,2063.8,0.001]
[1772795790178,0.002,2063.9,2063.8,0.001]
[1772795790751,0.48375799,2063.9,2063.8,0.001]
[1772795792083,0.002,2063.9,2063.8,0.001]
[1772795792985,0.4987865,2063.9,2063.8,0.001]
[1772795793487,0.002,2063.9,2063.8,0.001]
[1772795793686,0.4967865,2064.0,2063.8,0.001]
[1772795794693,0.002,2064.1,2063.8,1.24884169]
[1772795795094,0.4987865,2064.1,2063.8,0.001]
[1772795796788,1.21319724,2064.1,2063.8,0.001]
[1772795796988,0.4967865,2064.0,2063.8,0.001]
[1772795802286,0.4987865,2064.1,2063.8,0.03748401]
[1772795803302,0.002,2064.3,2064.0,0.03648401]
[1772795803597,0.002,2064.3,2064.0,0.03748401]
[1772795803786,0.4987865,2064.3,2064.0,0.03748401]
[1772795804098,0.002,2064.3,2064.0,0.03748401]
[1772795804406,0.002,2064.4,2064.1,0.03448401]
[1772795805484,0.002,2064.4,2064.2,0.03448401]
[1772795807380,0.002,2064.4,2064.2,1.24559122]
[1772795807580,0.002,2064.4,2064.3,0.03448401]
[1772795808315,0.4987865,2064.6,2064.2,1.24559122]
[1772795808473,0.4967865,2064.5,2064.1,1.24566563]
[1772795809800,0.002,2064.6,2064.2,0.03448401]
[1772795811174,1.21289434,2064.6,2064.2,0.03448401]
[1772795811497,1.70968084,2064.6,2064.2,0.03448401]
[1772795811700,1.70968084,2064.6,2064.2,1.24557061]
[1772795813206,0.4987865,2064.6,2064.2,1.24557061]
[1772795813508,0.4987865,2064.6,2064.3,0.03448401]
[1772795813676,0.4967865,2064.5,2064.2,1.2110866]
[1772795814204,0.4967865,2064.5,2063.5,0.001]
[1772795814374,0.4967865,2064.2,2063.6,1.2479558]
[1772795814572,0.4967865,2064.2,2063.8,1.2123442]
[1772795814801,0.4967865,2064.4,2063.9,0.03548401]
[1772795815580,3.4967865,2064.4,2064.0,1.21124031]
[1772795815900,3.4967865,2064.4,2064.1,0.03548401]
[1772795817073,3.4967865,2064.4,2064.3,0.001]
[1772795817512,3.4987865,2064.4,2064.3,0.001]
[1772795817804,3.002,2064.4,2064.3,0.001]
[1772795820176,0.4967865,2064.5,2064.3,0.001]
[1772795820177,1.526,2064.6,2064.3,0.03648401]
[1772795822012,1.526,2064.6,2064.3,1.24753154]
[1772795822389,1.526,2064.6,2064.4,0.03548401]
[1772795824213,0.002,2064.6,2064.4,1.24644797]
[1772795829917,0.002,2064.6,2064.4,1.24744797]
[1772795836034,0.35832497,2064.8,2064.5,0.49402672]
[1772795836235,0.46145724,2065.1,2064.7,0.49402672]
[1772795836422,0.46145724,2065.6,2064.7,0.49402672]
[1772795836615,0.46145724,2065.4,2064.7,0.49402672]
[1772795838436,0.46145724,2065.4,2064.9,0.49402672]
[1772795839022,0.46145724,2065.3,2064.9,0.49402672]
[1772795839220,0.46145724,2065.3,2064.8,1.21077101]
[1772795839739,0.46145724,2065.3,2064.8,1.70479773]
[1772795840326,0.46145724,2065.2,2064.8,1.70479773]
[1772795841418,0.46145724,2065.2,2064.8,1.21077101]
[1772795842124,0.46145724,2065.2,2064.6,1.21085181]
[1772795842435,0.46145724,2065.0,2064.5,0.49402672]
[1772795843744,0.46145724,2065.0,2064.9,0.001]
[1772795844745,1.67211099,2065.0,2064.9,0.001]
[1772795845223,0.46145724,2064.9,2064.6,0.001]
[1772795846755,0.46145724,2064.9,2064.6,0.001]
[1772795847155,0.46145724,2064.8,2064.6,0.001]
[1772795850096,0.46145724,2065.0,2064.6,0.001]
[1772795850762,1.21064354,2065.1,2064.7,0.49402672]
[1772795850961,0.46145724,2065.0,2064.7,0.49402672]
[1772795852455,0.46145724,2065.0,2064.7,1.70481354]
[1772795852756,0.48621592,2065.1,2064.7,1.21078682]
[1772795853058,0.48621592,2065.1,2064.8,0.48086458]
[1772795854032,0.48621592,2065.1,2064.6,0.48186458]
[1772795854239,0.48621592,2065.1,2064.6,0.001]
[1772795854440,0.48621592,2064.9,2064.6,0.001]
[1772795856062,0.48621592,2064.9,2064.3,0.001]
[1772795856063,0.48621592,2064.7,2064.3,0.001]
[1772795856263,0.48621592,2064.7,2064.1,0.001]
[1772795856264,0.48621592,2064.6,2064.1,0.001]
[1772795856433,0.48621592,2064.4,2064.1,0.001]
[1772795856978,0.48621592,2064.4,2064.1,0.48186458]
[1772795858749,1.69722752,2064.4,2064.1,0.48186458]
[1772795859568,0.48621592,2064.4,2064.1,1.69303978]
[1772795859872,0.48621592,2064.3,2064.1,0.001]
[1772795860956,1.21098679,2064.5,2064.1,0.48186458]
[1772795860957,0.48621592,2064.4,2064.1,0.48186458]
[1772795861154,0.48621592,2064.4,2064.1,0.001]
[1772795863006,0.48621592,2064.2,2064.1,0.001]
[1772795863159,0.48621592,2064.2,2064.0,0.001]
[1772795863361,0.48621592,2064.2,2063.8,0.001]
[1772795864559,0.48621592,2064.2,2063.8,0.48186458]
[1772795864759,0.48621592,2064.2,2063.8,1.21231468]
[1772795864973,0.48621592,2064.2,2063.9,0.48086458]
[1772795865196,3.22124249,2064.4,2064.0,0.48086458]
[1772795866096,0.48621592,2064.3,2064.0,0.48086458]
[1772795867696,1.69729519,2064.3,2064.0,0.48086458]
[1772795868876,0.48621592,2064.3,2064.0,0.48086458]
[1772795869605,1.69728601,2064.3,2064.0,0.48086458]
[1772795870198,1.69728601,2064.3,2064.2,0.001]
[1772795871299,1.21103839,2064.4,2064.2,0.001]
[1772795871500,2.73603839,2064.4,2064.2,0.001]
[1772795871707,1.525,2064.4,2064.2,0.001]
[1772795871866,1.525,2064.4,2064.2,0.48186458]
[1772795874692,2.73600746,2064.4,2064.2,0.48186458]
[1772795874897,1.525,2064.4,2064.2,0.48186458]
[1772795876899,0.48621592,2064.7,2064.3,0.48086458]
[1772795877196,3.22309363,2064.7,2064.3,0.48086458]
[1772795878694,0.48621592,2064.6,2064.2,0.001]
[1772795879072,1.69714868,2064.6,2064.2,0.48186458]
[1772795879272,1.21093276,2064.6,2064.2,0.48186458]
[1772795879474,0.48621592,2064.5,2064.2,0.48186458]
[1772795880292,0.48621592,2064.5,2064.2,0.001]
[1772795880692,0.48621592,2064.5,2064.0,0.001]
[1772795881177,0.48621592,2064.3,2064.0,0.001]
[1772795881725,1.526,2064.2,2064.0,0.001]
[1772795881901,0.48826686,2064.1,2064.0,0.001]
[1772795883390,1.69944848,2064.1,2064.0,0.001]
[1772795886813,0.48826686,2064.0,2063.6,0.001]
[1772795888412,1.21118162,2064.1,2063.6,0.46259851]
[1772795888609,1.69956585,2063.9,2063.6,0.46259851]
[1772795888912,0.48826686,2063.8,2063.6,0.001]
[1772795891394,0.48826686,2063.7,2063.6,0.001]
[1772795891915,0.48826686,2063.7,2063.5,0.001]
[1772795892615,2.01726686,2063.6,2063.5,0.001]
[1772795893490,3.22874195,2063.6,2063.5,0.001]
[1772795894316,3.22874195,2063.6,2063.2,0.46159851]
[1772795894521,0.48826686,2063.5,2063.2,0.46159851]
[1772795894890,0.48826686,2063.5,2063.2,1.67330037]
[1772795895301,0.48826686,2063.9,2063.3,0.46159851]
[1772795895511,1.53,2063.8,2063.3,0.46159851]
[1772795896427,2.74136138,2063.8,2063.5,0.46159851]
[1772795896935,2.74136138,2063.8,2063.5,0.46259851]
[1772795897232,3.22962824,2063.8,2063.5,0.001]
[1772795898952,0.48826686,2063.7,2063.5,0.001]
[1772795901219,1.6997095,2063.7,2063.5,0.001]
[1772795906673,1.21144264,2063.7,2063.5,0.46259851]
[1772795907162,1.21144264,2063.7,2063.5,0.001]
[1772795907951,2.74140623,2063.8,2063.5,0.46259851]
[1772795909061,0.31879469,2063.8,2063.6,0.46159851]
[1772795909446,1.5301542,2063.8,2063.6,0.46159851]
[1772795910666,0.002,2063.7,2063.6,0.46159851]
[1772795913550,1.21326544,2064.0,2063.6,1.6730736]
[1772795913776,1.539,2064.0,2063.7,0.45785095]
[1772795914477,2.75024122,2064.0,2063.7,0.45785095]
[1772795916251,3.23958331,2064.0,2063.7,0.45785095]
[1772795916553,0.48934209,2063.9,2063.5,0.001]